[Event "VII GM Barcelona CC 2022"]
[Site "Barcelona"]
[Date "2022.05.12"]
[Round "4.3"]
[White "Del Prado Rodriguez, Xulio"]
[Black "Gonzalez Perez, Arian"]
[Result "0-1"]
[ECO "E73"]
[WhiteElo "2326"]
[BlackElo "2415"]
[Annotator "TA"]
[PlyCount "80"]
[EventDate "2022.05.10"]
[EventType "tourn"]
[EventCountry "ESP"]
[SourceTitle "playchess.com"]
[Source "ChessBase"]
[SourceQuality "1"]
[TimeControl "5400+30"]

{[%evp 13,80,25,25,29,21,35,36,31,55,40,52,50,51,54,56,43,67,63,70,60,77,62,70,61,97,77,95,99,110,61,56,66,69,-211,-202,-168,-145,-134,-133,-84,-25,-143,-54,-148,-81,-272,-265,-373,-360,-339,-289,-530,-524,-551,-546,-2279,-2353,-2324,-2172,-29987,-29988,-29988,-29989,-29989,-29990,-29990,-29991,-29991,-29992]} 1. d4 {[%emt 0:00:08]} Nf6 {[%emt 0:05:17]} 2. c4 {[%emt 0:00:23]} g6 {[%emt 0:00:08]} 3. Nc3 {[%emt 0:00:28]} Bg7 {[%emt 0:00:05]} 4. e4 {[%emt 0:00:31]} d6 {[%emt 0:00:30]} 5. Be2 {[%emt 0:00:46]} O-O {[%emt 0:00:17]} 6. Be3 {[%emt 0:00:06]} c5 {[%emt 0:01:39]} 7. d5 {[%emt 0:00:31]} e6 {[%emt 0:00:25]} 8. Nf3 {[%emt 0:00:23] E73: King's Indian: Averbakh Variation without 6...c5.} exd5 {[%emt 0:00:41]} 9. cxd5 {[%emt 0:00:32]} a6 {[%emt 0:06:20]} 10. a4 {[%emt 0:01:01] Against b5. White is slightly better.} Bg4 {[%emt 0:01:45]} 11. Nd2 {[%emt 0:04:48]} Bxe2 {[%emt 0:02:25]} 12. Qxe2 {[%emt 0:00:10]} Re8 {[%emt 0:00:27]} 13. f3 {[%emt 0:05:17]} Nbd7 {[%emt 0:04:50]} 14. O-O {[%emt 0:06:29]} Rc8 {[%emt 0:03:40]} 15. Kh1 {[%emt 0:05:33] [#]} Qc7 $146 {[%emt 0:03:50]} ({Predecessor:} 15... Qe7 16. Rae1 Nf8 17. Nc4 N6d7 18. Bf4 Ne5 19. Bxe5 Bxe5 20. f4 Bxc3 21. bxc3 b5 22. axb5 axb5 {½-½ (41) Kraidman,Y-Romm,M Nathanya 1973}) 16. a5 {[%emt 0:04:27]} Ra8 {[%emt 0:07:43]} 17. Ra3 {[%emt 0:26:47]} Rab8 {[%emt 0:09:02]} 18. Rb1 {[%emt 0:06:26]} Nh5 {[%emt 0:02:18] [#]} 19. g4 $1 {[%emt 0:08:35] Against f5} Nhf6 {[%emt 0:00:22]} 20. h3 {[%emt 0:01:29]} h5 {[%emt 0:04:45]} 21. Nc4 {[%emt 0:07:01]} (21. g5 $16) 21... b5 $14 {[%emt 0:05:59]} 22. axb6 $1 {[%emt 0:01:36]} Nxb6 {[%emt 0:00:07]} 23. Rxa6 $2 {[%emt 0:09:13][%mdl 8192]} (23. Nd2 $14 {keeps the upper hand.}) 23... Nxc4 $19 {[%emt 0:02:11]} 24. Qxc4 {[%emt 0:00:02]} Rb4 $36 {[%emt 0:00:19][%mdl 2048] Black is in control.} 25. Qd3 {[%emt 0:00:34]} hxg4 {[%emt 0:02:37]} 26. hxg4 {[%emt 0:01:23]} Reb8 {[%emt 0:00:24]} ({Better is} 26... Nd7 $17 27. Qc2 (27. Nb5 $2 Qd8 $19) 27... Reb8) 27. Nd1 {[%emt 0:05:19] [#]} (27. Bf4 $11 {keeps the balance.} Ne8 28. Ra3) 27... Nd7 {[%emt 0:01:35]} (27... Qe7 $1 $17 {[%cal Rf6e4] ...Nxe4! is the strong threat.} 28. Ra3 Nd7) 28. Bd2 {[%emt 0:01:02]} (28. Qe2 $15) 28... Ne5 {[%emt 0:10:39]} ({Black should try} 28... Rb3 29. Qe2 Qd8) 29. Qf1 {[%emt 0:00:57]} (29. Qe2 $17 Rb3 30. Bc3) 29... Rb3 {[%emt 0:01:45]} 30. Bc3 {[%emt 0:00:07]} (30. Nc3 {was worth a try.}) 30... Qe7 {[%emt 0:00:53] Strongly threatening ...Qh4+.} 31. Rba1 {[%emt 0:02:26]} c4 {[%emt 0:08:25] White must now prevent ...Qh4+.} 32. Ra8 $2 {[%emt 0:00:26]} (32. Qg2 Nd3 33. Ra7) 32... Qh4+ {[%emt 0:01:02]} 33. Kg2 {[%emt 0:00:02]} Nd3 {[%emt 0:00:11]} 34. Qg1 {[%emt 0:01:03]} Nf4+ {[%emt 0:05:04]} 35. Kf1 {[%emt 0:00:02]} Qh3+ {[%emt 0:00:06]} 36. Kf2 {[%emt 0:00:19] [#]} Bd4+ $1 {[%emt 0:00:08][%mdl 576] Skewer. Black mates.} 37. Ne3 {[%emt 0:00:01]} Bxc3 {[%emt 0:01:05][%mdl 64] Remove Defender} 38. bxc3 {[%emt 0:00:31]} Rb2+ {[%emt 0:00:08]} 39. Nc2 {[%emt 0:00:11]} Rxc2+ {[%emt 0:00:48]} 40. Ke3 {[%emt 0:00:01]} Ng2+ {[%emt 0:01:48] Weighted Error Value: White=0.86/Black=0.15 (very precise)} 0-1

[Event "VII GM Barcelona CC 2022"]
[Site "Barcelona"]
[Date "2022.05.12"]
[Round "4.4"]
[White "Munoz, Miguel"]
[Black "Alvarez Albiol, Victor"]
[Result "1/2-1/2"]
[ECO "C51"]
[WhiteElo "2421"]
[BlackElo "2328"]
[Annotator "TA"]
[PlyCount "29"]
[EventDate "2022.05.10"]
[EventType "tourn"]
[EventCountry "ESP"]
[SourceTitle "playchess.com"]
[Source "ChessBase"]
[SourceQuality "1"]
[TimeControl "5400+30"]

{[%evp 23,29,-2,0,-10,0,0,-10,-67]} 1. e4 {[%emt 0:09:18]} e5 {[%emt 0:00:07]} 2. Nf3 {[%emt 0:00:06][%cal Bg1f3,Bf3e5,Be5c4,Bc4e3][%mdl 32]} Nc6 {[%emt 0:00:04]} 3. Bc4 {[%emt 0:00:09]} Bc5 {[%emt 0:00:07]} 4. b4 {[%emt 0:00:06]} Bxb4 {[%emt 0:00:38]} 5. c3 {[%emt 0:00:13]} Be7 {[%emt 0:00:22]} 6. d4 {[%emt 0:00:08]} Na5 {[%emt 0:00:30]} 7. Nxe5 {[%emt 0:00:22]} Nxc4 {[%emt 0:00:18]} 8. Nxc4 {[%emt 0:00:06]} d5 {[%emt 0:00:51]} 9. exd5 {[%emt 0:00:08]} Qxd5 {[%emt 0:01:43]} 10. Ne3 {[%emt 0:00:10]} Qd8 {[%emt 0:01:14]} 11. O-O {[%emt 0:02:07]} Nf6 {[%emt 0:00:21]} 12. c4 {[%emt 0:00:38]} O-O {[%emt 0:00:33] The position is equal.} 13. Bb2 {[%emt 0:00:05] C51: Evans Gambit: Declined and Accepted without 5...Ba5.} c6 {[%emt 0:05:08]} 14. Nd2 {[%emt 0:07:45]} Be6 {[%emt 1:25:34] [#]} 15. Nb1 $146 {[%emt 1:16:39]} ({White should play} 15. a4 $11) ({Predecessor:} 15. Qf3 Qb6 16. Rab1 Qa5 17. Ne4 Nxe4 18. Qxe4 Rfe8 19. d5 cxd5 20. cxd5 Bd7 21. Qf4 Qxa2 {0-1 (42) Desnica,L (1431)-Baric,M (1596) Nasice 2017}) 1/2-1/2

[Event "VII GM Barcelona CC 2022"]
[Site "Barcelona"]
[Date "2022.05.12"]
[Round "4.5"]
[White "Rodriguez Lopez, Rafael"]
[Black "Gines Esteo, Pedro Antonio"]
[Result "0-1"]
[ECO "B11"]
[WhiteElo "2176"]
[BlackElo "2434"]
[Annotator "TA"]
[PlyCount "74"]
[EventDate "2022.05.10"]
[EventType "tourn"]
[EventCountry "ESP"]
[SourceTitle "playchess.com"]
[Source "ChessBase"]
[SourceQuality "1"]
[TimeControl "5400+30"]

{[%evp 10,74,22,25,24,32,22,0,0,0,4,-24,0,-43,0,0,6,-8,-4,-22,0,-41,-41,-41,-47,-48,-47,-49,-47,-46,-44,-41,-41,-38,-38,-92,-91,-95,-34,-37,-30,-52,-56,-98,-59,-110,-82,-102,-92,-104,-104,-131,-120,-200,-188,-183,-160,-656,-230,-668,-658,-29976,-29976,-29982,-29983,-29989,-29990]} 1. e4 {[%emt 0:00:14]} c6 {[%emt 0:00:22]} 2. Nc3 {[%emt 0:01:06]} d5 {[%emt 0:00:07]} 3. Nf3 {[%emt 0:00:04]} dxe4 {[%emt 0:01:18]} 4. Nxe4 {[%emt 0:00:06]} Nf6 {[%emt 0:00:04]} 5. Qe2 {[%emt 0:00:43]} Nxe4 {[%emt 0:00:08]} 6. Qxe4 {[%emt 0:00:04]} Qa5 {[%emt 0:00:18] B11: Caro-Kann: Two Knights Variation.} 7. Bc4 {[%emt 0:02:14]} Bf5 {[%emt 0:00:26]} 8. Qe5 {[%emt 0:01:48]} Qxe5+ {[%emt 0:01:00] The position is equal.} 9. Nxe5 {[%emt 0:00:04]} e6 $1 {[%emt 0:00:11]} 10. Bb3 {[%emt 0:00:31] [#]} (10. d3 $5 {[%cal Rg2g4]}) 10... Na6 $146 {[%emt 0:32:54]} ({Predecessor:} 10... Bd6 11. d4 Nd7 12. Nxd7 Kxd7 13. Be3 Kc7 14. c4 a5 15. a4 Rhd8 16. Ke2 b6 {0-1 (55) Matinian,N (2470)-Svane,R (2613) Chess.com INT 2021}) 11. g4 {[%emt 0:02:22]} Bg6 {[%emt 0:02:57]} (11... Be4 $5 {[%cal Re4h1]} 12. O-O (12. f3 Bd5 $11) 12... f6 $11) 12. d4 {[%emt 0:10:38]} Nb4 {[%emt 0:03:45]} 13. Nxg6 {[%emt 0:01:05]} hxg6 {[%emt 0:00:03]} 14. Bd2 {[%emt 0:07:36]} O-O-O {[%emt 0:03:11]} (14... a5 $5 {[%cal Ra5a4]} 15. a3 Nd5 $11) 15. Bxb4 {[%emt 0:01:08]} (15. c3 $5 {[%cal Rc3b4]}) 15... Bxb4+ {[%emt 0:00:06][%cal Bf8b4,Bb4a5,Ba5c7,Bc7h2,Bh2f4][%mdl 32]} 16. c3 {[%emt 0:00:06]} Ba5 {[%emt 0:00:48] ...Rxd4 is the strong threat.} 17. Rd1 {[%emt 0:13:18]} Rh3 {[%emt 0:12:15]} 18. Ke2 {[%emt 0:00:31]} Bc7 {[%emt 0:05:56]} 19. Rd3 {[%emt 0:02:02]} Rxh2 {[%emt 0:19:41]} 20. Rxh2 {[%emt 0:00:07]} Bxh2 $15 {[%emt 0:00:03][%mdl 4096] Endgame KRB-KRB} 21. Rf3 {[%emt 0:01:14] Against Bf4} Rd7 {[%emt 0:00:26]} 22. c4 {[%emt 0:09:21]} ({Better is} 22. g5 $15) 22... Kd8 $17 {[%emt 0:09:29]} ({Don't play} 22... Rxd4 $6 23. Rxf7 Rd7 24. Rxd7 Kxd7 25. Bc2 $15) 23. Rd3 {[%emt 0:00:49]} e5 {[%emt 0:02:37]} (23... Bd6 $17) 24. d5 $15 {[%emt 0:02:01]} e4 {[%emt 0:00:19]} 25. Rd2 {[%emt 0:03:56]} Bf4 {[%emt 0:00:21]} 26. Rc2 {[%emt 0:00:42]} c5 {[%emt 0:01:18]} 27. f3 {[%emt 0:05:31]} (27. Rc3 $15) 27... e3 {[%emt 0:00:00] Black is more active.} 28. Rc1 {[%emt 0:00:08]} Ke7 {[%emt 0:00:17]} 29. Bc2 {[%emt 0:00:41]} Kf6 {[%emt 0:00:06]} 30. a3 {[%emt 0:00:25]} Ke5 {[%emt 0:01:03]} 31. b4 {[%emt 0:00:28] [#]} (31. Rd1 $17) 31... Kd4 $1 $19 {[%emt 0:02:56]} 32. bxc5 {[%emt 0:00:11]} Rd8 {[%emt 0:00:43] Hoping for ...Rh8.} 33. c6 $2 {[%emt 0:01:02]} (33. Rb1 $2 Rh8 34. Bd1 Rh2+ 35. Ke1 Bg3+ 36. Kf1 Kxc5 37. Rxb7 Rf2+ 38. Kg1 Kxc4 $19) (33. Rh1 $17) 33... bxc6 $2 {[%emt 0:00:19]} (33... Rh8 {( -> ...Rh2+)} 34. Re1 (34. Rd1+ $2 Kc3 $19) 34... Rh2+ 35. Kd1 Rd2+ 36. Kc1 e2) 34. dxc6 $2 {[%emt 0:00:04]} (34. Rd1+ Kc3 35. Ba4) 34... Rh8 {[%emt 0:00:22]} 35. Rd1+ {[%emt 0:00:47]} Kc3 {[%emt 0:00:15] Black mates.} 36. Bd3 {[%emt 0:02:06]} Rh2+ {[%emt 0:00:13]} 37. Kf1 {[%emt 0:00:28]} Rh1+ {[%emt 0:00:12] Weighted Error Value: White=0.66/Black=0.38} 0-1

[Event "VII GM Barcelona CC 2022"]
[Site "Barcelona"]
[Date "2022.05.12"]
[Round "5.1"]
[White "Gines Esteo, Pedro Antonio"]
[Black "Pajeken, Jakob Leon"]
[Result "1-0"]
[ECO "A28"]
[WhiteElo "2434"]
[BlackElo "2398"]
[Annotator "TA"]
[PlyCount "71"]
[EventDate "2022.05.10"]
[EventType "tourn"]
[EventCountry "ESP"]
[SourceTitle "playchess.com"]
[Source "ChessBase"]
[SourceQuality "1"]
[TimeControl "5400+30"]

{[%evp 12,70,-14,-21,-10,-15,-9,-14,20,12,11,-7,0,0,0,0,0,0,7,0,9,0,8,6,12,0,25,25,28,11,23,0,10,10,51,35,59,41,97,85,138,131,302,317,384,389,750,740,1172,1115,2112,2005,2296,2179,29989,29990,29993,29994,29996,29997,29999]} 1. c4 {[%emt 0:01:20]} e5 {[%emt 0:00:34]} 2. Nc3 {[%emt 0:00:08]} Nf6 {[%emt 0:00:10]} 3. Nf3 {[%emt 0:00:16]} Nc6 {[%emt 0:00:15]} 4. e4 {[%emt 0:01:06]} Bb4 {[%emt 0:00:09]} 5. d3 {[%emt 0:00:41]} d6 {[%emt 0:00:33]} 6. g3 {[%emt 0:03:26]} O-O {[%emt 0:03:54]} 7. Bg2 {[%emt 0:00:07]} Bg4 {[%emt 0:03:27] A28: English Opening: Four Knights Variation.} 8. h3 {[%emt 0:05:53]} (8. a3 {is more complex.} Bc5 9. b4 Bd4 10. Bd2) 8... Bxf3 {[%emt 0:05:11]} 9. Bxf3 {[%emt 0:00:28] [#]} Qd7 $146 {[%emt 0:01:57] The position is equal.} ({Predecessor:} 9... Nd4 10. Bg2 c6 11. O-O Nd7 12. h4 f5 13. exf5 Nxf5 14. Ne4 Bc5 15. Nxc5 Nxc5 16. b4 Ne6 17. b5 Qd7 18. bxc6 bxc6 {½-½ (33) Zhao,J (2601)-Wang,Y (2431) China 2018}) 10. Bg5 {[%emt 0:11:33]} Qe6 {[%emt 0:02:30]} 11. O-O {[%emt 0:05:26] And now Nd5 would win.} Bxc3 {[%emt 0:11:04]} ({Much less strong is} 11... Qxh3 12. Bxf6 gxf6 13. Bg4 $18) 12. bxc3 {[%emt 0:00:12]} h6 {[%emt 0:00:06]} ({Don't play} 12... Qxh3 13. Bxf6 Qh6 14. Bh4 $16) 13. Bxf6 {[%emt 0:07:53]} Qxf6 {[%emt 0:00:57]} 14. Rb1 {[%emt 0:00:14]} Rab8 {[%emt 0:00:46]} 15. Be2 {[%emt 0:02:20]} Qg6 {[%emt 0:04:35]} 16. Bh5 {[%emt 0:01:33]} Qg5 {[%emt 0:01:37]} 17. h4 {[%emt 0:12:09]} Qe7 {[%emt 0:00:07]} 18. Bg4 {[%emt 0:02:39]} g6 {[%emt 0:01:47]} 19. Bh3 {[%emt 0:04:08]} Kg7 {[%emt 0:01:38]} 20. Qg4 {[%emt 0:07:35]} b6 {[%emt 0:02:40]} 21. f4 {[%emt 0:05:19]} exf4 {[%emt 0:01:56]} (21... h5 $5 {[%cal Rh5g4]} 22. Qe2 exf4 $11) 22. gxf4 {[%emt 0:08:08][%cal Bg3f4,Bf4f5,Bf5g6][%mdl 32]} Kh7 {[%emt 0:02:58]} 23. Rbe1 {[%emt 0:06:07]} Rbe8 {[%emt 0:00:40]} 24. Bg2 {[%emt 0:13:49][%cal Bh3g2,Bg2e4,Be4g6][%mdl 32]} Nb8 ({Black should try} 24... Nd8 $14) 25. d4 {[%emt 0:00:00]} h5 {[%emt 0:05:01]} (25... Nd7 $142) 26. Qg3 $16 {[%emt 0:00:00] White is more active.} Qe6 $2 {[%emt 0:00:54] [#] This costs Black the game.} (26... Nc6 $16) 27. f5 $1 $18 {[%emt 0:00:00]} Qxc4 {[%emt 0:00:12]} 28. e5 {[%emt 0:00:00] aiming for Be4.} dxe5 $2 {[%emt 0:00:17]} (28... Rg8 29. fxg6+ fxg6) 29. Be4 {[%emt 0:00:00][%cal Rf5g6]} Rg8 {[%emt 0:03:30]} 30. fxg6+ {[%emt 0:00:00]} fxg6 {[%emt 0:00:05]} 31. Rf6 {[%emt 0:00:00][%cal Rf6g6,Bf1f6,Bf6f7,Bf7h7][%mdl 32]} ({Not} 31. Qg5 Qe6 $14) 31... Kh8 {[%emt 0:11:55]} 32. Qg5 {[%emt 0:00:00][%cal Rg5h6] [#]} Re7 {[%emt 0:00:31]} 33. Bxg6 {[%emt 0:02:54] White mates.} Rh7 {[%emt 0:00:38]} 34. Qxe5 {[%emt 0:00:38]} Nd7 {[%emt 0:00:53]} 35. Rf7+ $1 {[%emt 0:00:16]} Nxe5 {[%emt 0:00:15]} 36. Rxh7# {[%emt 0:02:12] Weighted Error Value: White=0.06 (flawless) /Black=0.51} 1-0

[Event "VII GM Barcelona CC 2022"]
[Site "Barcelona"]
[Date "2022.05.12"]
[Round "5.2"]
[White "Alvarez Albiol, Victor"]
[Black "Rodriguez Lopez, Rafael"]
[Result "1-0"]
[ECO "B53"]
[WhiteElo "2328"]
[BlackElo "2176"]
[Annotator "TA"]
[PlyCount "101"]
[EventDate "2022.05.10"]
[EventType "tourn"]
[EventCountry "ESP"]
[SourceTitle "playchess.com"]
[Source "ChessBase"]
[SourceQuality "1"]
[TimeControl "5400+30"]

{[%evp 21,101,0,0,0,0,0,0,0,-2,-7,0,-4,4,8,8,3,4,3,17,-26,0,0,4,9,32,32,65,66,66,66,79,9,104,68,82,69,58,56,244,243,216,217,268,214,285,271,274,192,319,319,343,335,693,294,810,810,822,793,1140,1134,883,826,1763,1764,1627,1587,5206,4133,4651,2022,810,1103,29983,29984,29993,29994,29994,29995,29995,29995,29995,29996]} 1. e4 {[%emt 0:00:02]} c5 {[%emt 0:00:08]} 2. Nf3 {[%emt 0:00:08]} d6 {[%emt 0:00:06]} 3. d4 {[%emt 0:00:03]} cxd4 {[%emt 0:00:05]} 4. Qxd4 {[%emt 0:00:04]} Nf6 {[%emt 0:00:30]} 5. Bg5 {[%emt 0:00:57]} Nc6 {[%emt 0:00:21]} 6. Bb5 {[%emt 0:01:34]} Bd7 {[%emt 0:00:28]} 7. Bxc6 {[%emt 0:00:05]} Bxc6 {[%emt 0:00:06]} 8. Nc3 {[%emt 0:00:18]} e6 {[%emt 0:00:06]} 9. O-O-O {[%emt 0:00:11]} Be7 {[%emt 0:00:05]} 10. Qd3 $1 {[%emt 0:00:15][%mdl 4] is more profitable than 10.Rhe1 at the moment.} Qa5 {[%emt 0:00:26]} 11. h4 {[%emt 0:00:27]} h6 {[%emt 0:00:55]} 12. Bxf6 {[%emt 0:01:00] B53: Sicilian: 2...d6: Lines with Qxd4.} Bxf6 {[%emt 0:13:19]} 13. Nd4 {[%emt 0:00:30]} Rd8 {[%emt 0:04:11][%cal Of6h4]} 14. f4 {[%emt 0:02:21] The position is equal.} O-O {[%emt 0:02:02]} 15. g4 {[%emt 0:00:58][%cal Bg2g4,Bg4g5][%mdl 32]} Bxd4 {[%emt 0:00:12]} 16. Qxd4 {[%emt 0:00:08]} e5 {[%emt 0:00:03]} 17. Qd2 {[%emt 0:00:56]} exf4 {[%emt 0:00:26]} 18. g5 {[%emt 0:01:23] [#]} h5 $146 {[%emt 0:03:52]} (18... hxg5 19. hxg5 Rfe8 20. Qh2 $18 (20. Qxf4 Qe5 $16)) ({Predecessor:} 18... f5 19. gxh6 fxe4 20. Rhg1 Qe5 21. Rg5 Rf5 22. Rxg7+ Kh8 23. Qg2 Qf6 24. Nxe4 Bxe4 25. Qxe4 {0-1 (67) Kovalev,V (2485)-Antipov,M (2462) Athens 2012}) 19. Qxf4 {[%emt 0:06:58]} Qe5 {[%emt 0:07:28]} 20. Qf3 {[%emt 0:01:32]} g6 {[%emt 0:00:20]} 21. Nd5 {[%emt 0:02:54]} Bxd5 {[%emt 0:00:33]} 22. Rxd5 {[%emt 0:00:08]} Qe7 {[%emt 0:00:40]} 23. Rhd1 {[%emt 0:00:49]} Rfe8 {[%emt 0:00:11]} 24. R1d4 {[%emt 0:01:21] White is much more active.} Qc7 {[%emt 0:03:15]} 25. Qd3 $1 {[%emt 0:02:50]} Rc8 {[%emt 0:04:03]} 26. Kb1 {[%emt 0:10:50]} (26. c3 $16) 26... Re6 {[%emt 0:03:27]} (26... Qd7 $1 $11) 27. a3 {[%emt 0:12:10][%cal Rd5d6]} Rce8 {[%emt 0:00:15]} 28. Rxd6 {[%emt 0:01:17]} Rxd6 {[%emt 0:04:15]} 29. Rxd6 {[%emt 0:00:06] Threatens to win with Qd5.} Rxe4 $2 {[%emt 0:00:34] [#] Black cannot hold the game after this.} 30. Rxg6+ $3 $18 {[%emt 0:11:56][%mdl 512]} fxg6 {[%emt 0:00:04]} 31. Qxe4 $16 {[%emt 0:00:06][%mdl 4096] Endgame KQ-KQ} Qf7 {[%emt 0:00:15]} 32. b3 {[%emt 0:00:40]} Kf8 {[%emt 0:05:42]} 33. Qb4+ {[%emt 0:03:26]} Kg8 {[%emt 0:03:22]} 34. Qd4 {[%emt 0:02:44] Against Qd7} a6 {[%emt 0:00:37]} (34... b6 {was worth a try.} 35. Kc1 Qf8) 35. a4 $18 {[%emt 0:00:30]} Qf3 {[%emt 0:00:57]} 36. Kb2 {[%emt 0:00:41]} Kf7 $2 {[%emt 0:00:49]} (36... Qc6 37. c4 Qc7) 37. Qe5 {[%emt 0:05:41]} (37. Qd7+ $142 Kg8 38. Qe6+ Kh7 39. Qe7+ Kg8 40. Qe8+ Kg7 41. Ka3) 37... Qc6 $2 {[%emt 0:01:11]} (37... Kg8 38. Qe6+ Kh7) 38. c4 {[%emt 0:01:33]} Qg2+ {[%emt 0:02:03]} 39. Ka3 {[%emt 0:00:24]} Qc2 {[%emt 0:01:11]} 40. Qd5+ {[%emt 0:02:27]} Ke8 {[%emt 0:00:58]} 41. Kb4 {[%emt 0:04:38]} Qb1 {[%emt 0:00:56]} 42. Qxb7 {[%emt 0:04:38]} Qe1+ {[%emt 0:00:48]} 43. Kc5 {[%emt 0:00:07] [#] Black must now prevent Qc6+.} Qxh4 {[%emt 0:00:59]} 44. Qc6+ {[%emt 0:00:32]} Ke7 {[%emt 0:00:55]} 45. Qd6+ {[%emt 0:01:35]} Ke8 {[%emt 0:00:50]} 46. Qxg6+ {[%emt 0:00:11]} Kd7 {[%emt 0:00:02]} 47. Qf7+ {[%emt 0:01:07] White mates.} Kc8 {[%emt 0:00:52]} 48. Qe8+ {[%emt 0:04:04]} Kc7 {[%emt 0:00:08]} 49. Qe7+ {[%emt 0:00:25]} Kc8 {[%emt 0:00:07]} 50. Kc6 {[%emt 0:02:41][%csl Gc6][%cal Re7c7]} Qh1+ {[%emt 0:00:42]} 51. Kb6 {[%emt 0:00:33] Weighted Error Value: White=0.20 (precise) /Black=0.59} 1-0

[Event "VII GM Barcelona CC 2022"]
[Site "Barcelona"]
[Date "2022.05.12"]
[Round "5.3"]
[White "Gonzalez Perez, Arian"]
[Black "Munoz, Miguel"]
[Result "1/2-1/2"]
[ECO "B30"]
[WhiteElo "2415"]
[BlackElo "2421"]
[Annotator "TA"]
[PlyCount "25"]
[EventDate "2022.05.10"]
[EventType "tourn"]
[EventCountry "ESP"]
[SourceTitle "playchess.com"]
[Source "ChessBase"]
[SourceQuality "1"]
[TimeControl "5400+30"]

{[%evp 11,25,13,19,0,0,0,0,0,0,-20,-24,-29,-22,-20,-29,-29]} 1. e4 {[%emt 0:05:07][%cal Be2e4,Be4e5][%mdl 32]} c5 {[%emt 0:00:57]} 2. Nf3 {[%emt 0:00:06]} Nc6 {[%emt 0:00:07]} 3. Bb5 {[%emt 0:00:12]} Nf6 {[%emt 0:00:10]} 4. Nc3 {[%emt 0:00:14]} Nd4 {[%emt 0:00:08]} 5. e5 {[%emt 0:01:36]} Nxb5 {[%emt 0:00:08]} 6. Nxb5 {[%emt 0:00:04]} Nd5 {[%emt 0:00:08]} 7. Nc3 {[%emt 0:00:46] B30: Sicilian: 2...Nc6 3 Bb5, lines without ...g6.} Nxc3 {[%emt 0:00:24]} 8. dxc3 {[%emt 0:00:05]} d5 {[%emt 0:00:17] [#]} 9. exd6 $146 {[%emt 0:00:24] The position is equal.} ({Predecessor:} 9. O-O h6 10. Qd3 e6 11. c4 b6 12. Nd2 Bb7 13. Rd1 Qd7 14. b3 Be7 15. Bb2 {½-½ (32) Kosirog,N-Ramsden,J (1768) ICCF email 2010}) 9... exd6 {[%emt 0:00:05]} 10. Bg5 {[%emt 0:01:33]} Be7 {[%emt 0:00:28]} 11. Bxe7 {[%emt 0:00:19]} Qxe7+ {[%emt 0:00:12]} 12. Qe2 {[%emt 0:00:03]} Qxe2+ {[%emt 0:02:55]} 13. Kxe2 {[%emt 0:00:08] A rather calm draw.  Weighted Error Value: White=0.06 (flawless) /Black=0.00 (flawless)} 1/2-1/2